Workbook

Sheet Instructions
A1: Workbook Instructions | F1: SANDBOX AREA (highlighted in light red)- For rough work associated with the print area to the left. Rough work may include, notes, calculations, derivations, etc.
A2: Enter information as required in all cells highlighted in Blue.
A3: All cells not highlighted in Blue are locked from editing. Locked cells include: cells with formulas highlighted in Gray or Light Yellow, cells with no color fill (white), etc.
A4: Rules for decimal places on values:
A5: · Budget and Invoice values:
A6: o Rounding of any values, as described below, should be performed using standard rounding practices.
A7: o For all currency rates (e.g., Direct Labor, and Unit Cost): Round to the cent ($0.01).
A8: o For all percentage rates (e.g., Fringe Benefits, Indirect Cost, and Profit): Round to a maximum of two decimal places of a percent (e.g., 25.12%). You can round to less if desired, such as one decimal place (e.g., 25.1%), or zero decimal places (e.g., 25%).
A9: o For all quantity values (e.g., # of hours, # of months, and # of units): Round to a maximum of two decimal places (e.g., 50.12). You can round to less if desired, such as one decimal place (e.g., 50.1), or zero decimal places (e.g., 50).
A10: · Budget values:
A11: o For entered and totaled (via calculation) CEC and Match share budget values: Round to the dollar ($1).
A12: o For all calculated currency values (e.g., rate x hours, rate x months, base amount, and rate x base amount): Round to the dollar ($1).
A13: · Invoice values:
A14: o For entered and totaled (via calculation) CEC and Match share expense invoice values: Round to the cent ($0.01).
A15: o For all calculated currency values (e.g., rate x hours, rate x months, base amount, and rate x base amount): Round to the cent ($0.01).
A16: o SPECIAL CIRCUMSTANCE for calculated currency values: ONLY if a calculated value (e.g., rate x hours = actual labor expense) does NOT equal the actual expense, because of the decimal place rules provided for rates and quantity values listed above, it is acceptable to use as many decimal places as necessary for rates and quantity values listed above to ensure that the calculated value DOES equal the actual expense.
A17: If additional rows are needed within a section, unhide the hidden rows (i.e., select the row directly above and below the hidden rows, then right-click the selection and select “Unhide”). Hide any unused rows. DO NOT USE THE LAST TWO ROWS THAT ARE MARKED “CEC USE ONLY”. If all but the last 2 rows are used, and more rows are required, please contact the ECAMS Support team (ECAMS.Support@energy.ca.gov).
A18: FOR ECAMS SUPPORT TEAM ONLY: To add additional rows and maintain the formulas within the totals, (1) unprotect the sheet, (2) copy the second to the last row in the section, (3) insert the copied row just above the last row, (4) repeat steps 2 - 3 as required, (5) correct formatting and REFERRENCE IDs as required, (6) delete “CEC USE ONLY” from all but the last two rows in the section, and (7) re-protect the sheet.
A19: For support on how to complete this template, please visit the ECAMS Resources web page. The link to this web page is provided in the cell below:
A20: https://www.energy.ca.gov/funding-opportunities/funding-resources/ecams-resources

Sheet Category Budget
A1: AGREEMENT BUDGET | I1: SANDBOX AREA (highlighted in light red)- For rough work associated with the print area to the left. Rough work may include, notes, calculations, derivations, etc.
A2: Category Budget
A3: Name of Organization | B3: Organization Name
A4: Select Recipient or Subrecipient
A5: Select your company's California Business Certifications
A6: Cost Category | B6: CEC Share | C6: Match Share | D6: Total
A7: Direct Labor | B7: =ROUND('Direct Labor'!B5,0) -> 320500 | C7: =ROUND('Direct Labor'!C5,0) -> 8000 | D7: ='Direct Labor'!D5 -> 328500
A8: Fringe Benefits | B8: =ROUND('Fringe Benefits'!B5,0) -> 179250 | C8: =ROUND('Fringe Benefits'!C5,0) -> 28000 | D8: ='Fringe Benefits'!D5 -> 207250
A9: Total Labor | B9: =SUM(B7:B8) -> 499750 | C9: =SUM(C7:C8) -> 36000 | D9: =SUM(D7:D8) -> 535750
A10: Travel | B10: =ROUND(Travel!B5,0) -> 500 | C10: =ROUND(Travel!C5,0) -> 200 | D10: =Travel!D5 -> 700
A11: Equipment | B11: =Equipment!I207 -> 657000 | C11: =Equipment!J207 -> 58000 | D11: =Equipment!K207 -> 715000
A12: Materials/Miscellaneous | B12: =ROUND('Materials & Misc.'!B5,0) -> 35000 | C12: =ROUND('Materials & Misc.'!C5,0) -> 10000 | D12: ='Materials & Misc.'!D5 -> 45000
A13: Subrecipients/Vendors | B13: ='Subrecipients & Vendors'!F114 -> 101000 | C13: ='Subrecipients & Vendors'!G114 -> 71000 | D13: ='Subrecipients & Vendors'!H114 -> 172000
A14: Total Other Direct Costs | B14: =SUM(B10:B13) -> 793500 | C14: =SUM(C10:C13) -> 139200 | D14: =SUM(D10:D13) -> 932700
A15: Indirect Costs | B15: =ROUND('Indirect Costs & Profit'!B7,0) -> 117051 | C15: =ROUND('Indirect Costs & Profit'!C7,0) -> 8040 | D15: ='Indirect Costs & Profit'!D7 -> 125091
A16: Profit (not allowed for grant recipients) | B16: =ROUND('Indirect Costs & Profit'!B11,0) -> 49975 | C16: =ROUND('Indirect Costs & Profit'!C11,0) -> 3600 | D16: =ROUND('Indirect Costs & Profit'!D11,0) -> 53575
A17: Total Indirect and Profit | B17: =SUM(B15:B16) -> 167026 | C17: =SUM(C15:C16) -> 11640 | D17: =SUM(D15:D16) -> 178666
A18: Grand Totals | B18: =B9+B14+B17 -> 1460276 | C18: =C9+C14+C17 -> 186840 | D18: =D9+D14+D17 -> 1647116
A19: Total CEC Reimbursable Funds Spent in California or Paid to California-Based Entities (if applicable) | B19: =1460276*0.981 -> 1432530.756
A20: Percentage of CEC Reimbursable Funds Spent in California or Paid to California-Based Entities | B20: =IF(B19=0,"",B19/B18) -> 0.981

Sheet Direct Labor
A1: AGREEMENT BUDGET | I1: SANDBOX AREA (highlighted in light red)- For rough work associated with the print area to the left. Rough work may include, notes, calculations, derivations, etc.
A2: Direct Labor (Unloaded)
A3: ='Category Budget'!$B$3 -> Organization Name
B4: CEC Share | C4: Match Share | D4: Total
A5: Grand Totals | B5: 320500 | C5: 8000 | D5: =SUM(ROUND(B5:C5,0)) -> 328500

Sheet Fringe Benefits
A1: AGREEMENT BUDGET | I1: SANDBOX AREA (highlighted in light red)- For rough work associated with the print area to the left. Rough work may include, notes, calculations, derivations, etc.
A2: Fringe Benefits
A3: ='Category Budget'!$B$3 -> Organization Name
B4: CEC Share | C4: Match Share | D4: Total
A5: Grand Totals | B5: 179250 | C5: 28000 | D5: =SUM(ROUND(B5:C5,0)) -> 207250

Sheet Travel
A1: AGREEMENT BUDGET | I1: SANDBOX AREA (highlighted in light red)- For rough work associated with the print area to the left. Rough work may include, notes, calculations, derivations, etc.
A2: Travel
A3: ='Category Budget'!$B$3 -> Organization Name
B4: CEC Share | C4: Match Share | D4: Total
A5: Grand Totals | B5: 500 | C5: 200 | D5: =SUM(ROUND(B5:C5,0)) -> 700

Sheet Equipment
A1: AGREEMENT BUDGET | R1: SANDBOX AREA (highlighted in light red)- For rough work associated with the print area to the left. Rough work may include, notes, calculations, derivations, etc.
A2: Equipment
A3: ='Category Budget'!$B$3 -> Organization Name
A4: Reference ID | B4: Task # | C4: Legal Name of entity providing equipment: Recipient/ Subrecipient/ Vendor | D4: Description | E4: Purpose | F4: # of Units | G4: Unit Cost | H4: Total: # of Units x Unit Cost | I4: CEC Share | J4: Match Share | K4: Total | L4: Line Item Revised Since Last Approved Budget? | M4: Notes
A5: E-1 | B5: 4 | C5: M&M Inc. | D5: Equipment Type A | E5: Needed to help complete project | F5: 5 | G5: 30000 | H5: =ROUND(F5*G5,0) -> 150000 | I5: 125000 | J5: 25000 | K5: =SUM(ROUND(I5:J5,0)) -> 150000 | L5: Select Yes or No
A6: E-2 | B6: 2 | C6: Equipment Inc. | D6: Equipment Type B | E6: Needed to help complete project | F6: 11 | G6: 50000 | H6: =ROUND(F6*G6,0) -> 550000 | I6: 525000 | J6: 25000 | K6: =SUM(ROUND(I6:J6,0)) -> 550000 | L6: Select Yes or No
A7: E-3 | B7: 2 | C7: Equipment Inc. | D7: Equipment Type C | E7: Needed to help complete project | F7: 3 | G7: 5000 | H7: =ROUND(F7*G7,0) -> 15000 | I7: 7000 | J7: 8000 | K7: =SUM(ROUND(I7:J7,0)) -> 15000 | L7: Select Yes or No
A8: E-4 | F8: 0 | G8: 0 | H8: =ROUND(F8*G8,0) -> 0 | I8: 0 | J8: 0 | K8: =SUM(ROUND(I8:J8,0)) -> 0 | L8: Select Yes or No
A9: E-5 | F9: 0 | G9: 0 | H9: =ROUND(F9*G9,0) -> 0 | I9: 0 | J9: 0 | K9: =SUM(ROUND(I9:J9,0)) -> 0 | L9: Select Yes or No
A10: E-6 | F10: 0 | G10: 0 | H10: 0 | I10: 0 | J10: 0 | K10: =SUM(ROUND(I10:J10,0)) -> 0 | L10: Select Yes or No
A11: E-7 | F11: 0 | G11: 0 | H11: 0 | I11: 0 | J11: 0 | K11: =SUM(ROUND(I11:J11,0)) -> 0 | L11: Select Yes or No
A12: E-8 | F12: 0 | G12: 0 | H12: 0 | I12: 0 | J12: 0 | K12: =SUM(ROUND(I12:J12,0)) -> 0 | L12: Select Yes or No
A13: E-9 | F13: 0 | G13: 0 | H13: 0 | I13: 0 | J13: 0 | K13: =SUM(ROUND(I13:J13,0)) -> 0 | L13: Select Yes or No
A14: E-10 | F14: 0 | G14: 0 | H14: 0 | I14: 0 | J14: 0 | K14: =SUM(ROUND(I14:J14,0)) -> 0 | L14: Select Yes or No
A15: E-11 | F15: 0 | G15: 0 | H15: 0 | I15: 0 | J15: 0 | K15: =SUM(ROUND(I15:J15,0)) -> 0 | L15: Select Yes or No
A16: E-12 | F16: 0 | G16: 0 | H16: 0 | I16: 0 | J16: 0 | K16: =SUM(ROUND(I16:J16,0)) -> 0 | L16: Select Yes or No
A17: E-13 | F17: 0 | G17: 0 | H17: 0 | I17: 0 | J17: 0 | K17: =SUM(ROUND(I17:J17,0)) -> 0 | L17: Select Yes or No
A18: E-14 | F18: 0 | G18: 0 | H18: =ROUND(F18*G18,0) -> 0 | I18: 0 | J18: 0 | K18: =SUM(ROUND(I18:J18,0)) -> 0 | L18: Select Yes or No
A19: E-15 | F19: 0 | G19: 0 | H19: =ROUND(F19*G19,0) -> 0 | I19: 0 | J19: 0 | K19: =SUM(ROUND(I19:J19,0)) -> 0 | L19: Select Yes or No
A20: E-16 | F20: 0 | G20: 0 | H20: =ROUND(F20*G20,0) -> 0 | I20: 0 | J20: 0 | K20: =SUM(ROUND(I20:J20,0)) -> 0 | L20: Select Yes or No
A21: E-17 | F21: 0 | G21: 0 | H21: =ROUND(F21*G21,0) -> 0 | I21: 0 | J21: 0 | K21: =SUM(ROUND(I21:J21,0)) -> 0 | L21: Select Yes or No
A22: E-18 | F22: 0 | G22: 0 | H22: 0 | I22: 0 | J22: 0 | K22: =SUM(ROUND(I22:J22,0)) -> 0 | L22: Select Yes or No
A23: E-19 | F23: 0 | G23: 0 | H23: 0 | I23: 0 | J23: 0 | K23: =SUM(ROUND(I23:J23,0)) -> 0 | L23: Select Yes or No
A24: E-20 | F24: 0 | G24: 0 | H24: 0 | I24: 0 | J24: 0 | K24: =SUM(ROUND(I24:J24,0)) -> 0 | L24: Select Yes or No
A25: E-21 | F25: 0 | G25: 0 | H25: 0 | I25: 0 | J25: 0 | K25: =SUM(ROUND(I25:J25,0)) -> 0 | L25: Select Yes or No
A26: E-22 | F26: 0 | G26: 0 | H26: 0 | I26: 0 | J26: 0 | K26: =SUM(ROUND(I26:J26,0)) -> 0 | L26: Select Yes or No
A27: E-23 | F27: 0 | G27: 0 | H27: 0 | I27: 0 | J27: 0 | K27: =SUM(ROUND(I27:J27,0)) -> 0 | L27: Select Yes or No
A28: E-24 | F28: 0 | G28: 0 | H28: 0 | I28: 0 | J28: 0 | K28: =SUM(ROUND(I28:J28,0)) -> 0 | L28: Select Yes or No
A29: E-25 | F29: 0 | G29: 0 | H29: 0 | I29: 0 | J29: 0 | K29: =SUM(ROUND(I29:J29,0)) -> 0 | L29: Select Yes or No
A30: E-26 | F30: 0 | G30: 0 | H30: =ROUND(F30*G30,0) -> 0 | I30: 0 | J30: 0 | K30: =SUM(ROUND(I30:J30,0)) -> 0 | L30: Select Yes or No
A31: E-27 | F31: 0 | G31: 0 | H31: =ROUND(F31*G31,0) -> 0 | I31: 0 | J31: 0 | K31: =SUM(ROUND(I31:J31,0)) -> 0 | L31: Select Yes or No
A32: E-28 | F32: 0 | G32: 0 | H32: =ROUND(F32*G32,0) -> 0 | I32: 0 | J32: 0 | K32: =SUM(ROUND(I32:J32,0)) -> 0 | L32: Select Yes or No
A33: E-29 | F33: 0 | G33: 0 | H33: =ROUND(F33*G33,0) -> 0 | I33: 0 | J33: 0 | K33: =SUM(ROUND(I33:J33,0)) -> 0 | L33: Select Yes or No
A34: E-30 | F34: 0 | G34: 0 | H34: 0 | I34: 0 | J34: 0 | K34: =SUM(ROUND(I34:J34,0)) -> 0 | L34: Select Yes or No
A35: E-31 | F35: 0 | G35: 0 | H35: 0 | I35: 0 | J35: 0 | K35: =SUM(ROUND(I35:J35,0)) -> 0 | L35: Select Yes or No
A36: E-32 | F36: 0 | G36: 0 | H36: 0 | I36: 0 | J36: 0 | K36: =SUM(ROUND(I36:J36,0)) -> 0 | L36: Select Yes or No
A37: E-33 | F37: 0 | G37: 0 | H37: 0 | I37: 0 | J37: 0 | K37: =SUM(ROUND(I37:J37,0)) -> 0 | L37: Select Yes or No
A38: E-34 | F38: 0 | G38: 0 | H38: 0 | I38: 0 | J38: 0 | K38: =SUM(ROUND(I38:J38,0)) -> 0 | L38: Select Yes or No
A39: E-35 | F39: 0 | G39: 0 | H39: 0 | I39: 0 | J39: 0 | K39: =SUM(ROUND(I39:J39,0)) -> 0 | L39: Select Yes or No
A40: E-36 | F40: 0 | G40: 0 | H40: 0 | I40: 0 | J40: 0 | K40: =SUM(ROUND(I40:J40,0)) -> 0 | L40: Select Yes or No
A41: E-37 | F41: 0 | G41: 0 | H41: 0 | I41: 0 | J41: 0 | K41: =SUM(ROUND(I41:J41,0)) -> 0 | L41: Select Yes or No
A42: E-38 | F42: 0 | G42: 0 | H42: =ROUND(F42*G42,0) -> 0 | I42: 0 | J42: 0 | K42: =SUM(ROUND(I42:J42,0)) -> 0 | L42: Select Yes or No
A43: E-39 | F43: 0 | G43: 0 | H43: =ROUND(F43*G43,0) -> 0 | I43: 0 | J43: 0 | K43: =SUM(ROUND(I43:J43,0)) -> 0 | L43: Select Yes or No
A44: E-40 | F44: 0 | G44: 0 | H44: =ROUND(F44*G44,0) -> 0 | I44: 0 | J44: 0 | K44: =SUM(ROUND(I44:J44,0)) -> 0 | L44: Select Yes or No
A45: E-41 | F45: 0 | G45: 0 | H45: =ROUND(F45*G45,0) -> 0 | I45: 0 | J45: 0 | K45: =SUM(ROUND(I45:J45,0)) -> 0 | L45: Select Yes or No
A46: E-42 | F46: 0 | G46: 0 | H46: 0 | I46: 0 | J46: 0 | K46: =SUM(ROUND(I46:J46,0)) -> 0 | L46: Select Yes or No
A47: E-43 | F47: 0 | G47: 0 | H47: 0 | I47: 0 | J47: 0 | K47: =SUM(ROUND(I47:J47,0)) -> 0 | L47: Select Yes or No
A48: E-44 | F48: 0 | G48: 0 | H48: 0 | I48: 0 | J48: 0 | K48: =SUM(ROUND(I48:J48,0)) -> 0 | L48: Select Yes or No
A49: E-45 | F49: 0 | G49: 0 | H49: 0 | I49: 0 | J49: 0 | K49: =SUM(ROUND(I49:J49,0)) -> 0 | L49: Select Yes or No
A50: E-46 | F50: 0 | G50: 0 | H50: 0 | I50: 0 | J50: 0 | K50: =SUM(ROUND(I50:J50,0)) -> 0 | L50: Select Yes or No
A51: E-47 | F51: 0 | G51: 0 | H51: 0 | I51: 0 | J51: 0 | K51: =SUM(ROUND(I51:J51,0)) -> 0 | L51: Select Yes or No
A52: E-48 | F52: 0 | G52: 0 | H52: 0 | I52: 0 | J52: 0 | K52: =SUM(ROUND(I52:J52,0)) -> 0 | L52: Select Yes or No
A53: E-49 | F53: 0 | G53: 0 | H53: =ROUND(F53*G53,0) -> 0 | I53: 0 | J53: 0 | K53: =SUM(ROUND(I53:J53,0)) -> 0 | L53: Select Yes or No
A54: E-50 | F54: 0 | G54: 0 | H54: =ROUND(F54*G54,0) -> 0 | I54: 0 | J54: 0 | K54: =SUM(ROUND(I54:J54,0)) -> 0 | L54: Select Yes or No
A55: E-51 | F55: 0 | G55: 0 | H55: 0 | I55: 0 | J55: 0 | K55: =SUM(ROUND(I55:J55,0)) -> 0 | L55: Select Yes or No
A56: E-52 | F56: 0 | G56: 0 | H56: 0 | I56: 0 | J56: 0 | K56: =SUM(ROUND(I56:J56,0)) -> 0 | L56: Select Yes or No
A57: E-53 | F57: 0 | G57: 0 | H57: 0 | I57: 0 | J57: 0 | K57: =SUM(ROUND(I57:J57,0)) -> 0 | L57: Select Yes or No
A58: E-54 | F58: 0 | G58: 0 | H58: 0 | I58: 0 | J58: 0 | K58: =SUM(ROUND(I58:J58,0)) -> 0 | L58: Select Yes or No
A59: E-55 | F59: 0 | G59: 0 | H59: 0 | I59: 0 | J59: 0 | K59: =SUM(ROUND(I59:J59,0)) -> 0 | L59: Select Yes or No
A60: E-56 | F60: 0 | G60: 0 | H60: 0 | I60: 0 | J60: 0 | K60: =SUM(ROUND(I60:J60,0)) -> 0 | L60: Select Yes or No
A61: E-57 | F61: 0 | G61: 0 | H61: 0 | I61: 0 | J61: 0 | K61: =SUM(ROUND(I61:J61,0)) -> 0 | L61: Select Yes or No
A62: E-58 | F62: 0 | G62: 0 | H62: 0 | I62: 0 | J62: 0 | K62: =SUM(ROUND(I62:J62,0)) -> 0 | L62: Select Yes or No
A63: E-59 | F63: 0 | G63: 0 | H63: =ROUND(F63*G63,0) -> 0 | I63: 0 | J63: 0 | K63: =SUM(ROUND(I63:J63,0)) -> 0 | L63: Select Yes or No
A64: E-60 | F64: 0 | G64: 0 | H64: =ROUND(F64*G64,0) -> 0 | I64: 0 | J64: 0 | K64: =SUM(ROUND(I64:J64,0)) -> 0 | L64: Select Yes or No
A65: E-61 | F65: 0 | G65: 0 | H65: =ROUND(F65*G65,0) -> 0 | I65: 0 | J65: 0 | K65: =SUM(ROUND(I65:J65,0)) -> 0 | L65: Select Yes or No
A66: E-62 | F66: 0 | G66: 0 | H66: =ROUND(F66*G66,0) -> 0 | I66: 0 | J66: 0 | K66: =SUM(ROUND(I66:J66,0)) -> 0 | L66: Select Yes or No
A67: E-63 | F67: 0 | G67: 0 | H67: 0 | I67: 0 | J67: 0 | K67: =SUM(ROUND(I67:J67,0)) -> 0 | L67: Select Yes or No
A68: E-64 | F68: 0 | G68: 0 | H68: 0 | I68: 0 | J68: 0 | K68: =SUM(ROUND(I68:J68,0)) -> 0 | L68: Select Yes or No
A69: E-65 | F69: 0 | G69: 0 | H69: 0 | I69: 0 | J69: 0 | K69: =SUM(ROUND(I69:J69,0)) -> 0 | L69: Select Yes or No
A70: E-66 | F70: 0 | G70: 0 | H70: 0 | I70: 0 | J70: 0 | K70: =SUM(ROUND(I70:J70,0)) -> 0 | L70: Select Yes or No
A71: E-67 | F71: 0 | G71: 0 | H71: 0 | I71: 0 | J71: 0 | K71: =SUM(ROUND(I71:J71,0)) -> 0 | L71: Select Yes or No
A72: E-68 | F72: 0 | G72: 0 | H72: 0 | I72: 0 | J72: 0 | K72: =SUM(ROUND(I72:J72,0)) -> 0 | L72: Select Yes or No
A73: E-69 | F73: 0 | G73: 0 | H73: 0 | I73: 0 | J73: 0 | K73: =SUM(ROUND(I73:J73,0)) -> 0 | L73: Select Yes or No
A74: E-70 | F74: 0 | G74: 0 | H74: 0 | I74: 0 | J74: 0 | K74: =SUM(ROUND(I74:J74,0)) -> 0 | L74: Select Yes or No
A75: E-71 | F75: 0 | G75: 0 | H75: =ROUND(F75*G75,0) -> 0 | I75: 0 | J75: 0 | K75: =SUM(ROUND(I75:J75,0)) -> 0 | L75: Select Yes or No
A76: E-72 | F76: 0 | G76: 0 | H76: =ROUND(F76*G76,0) -> 0 | I76: 0 | J76: 0 | K76: =SUM(ROUND(I76:J76,0)) -> 0 | L76: Select Yes or No
A77: E-73 | F77: 0 | G77: 0 | H77: =ROUND(F77*G77,0) -> 0 | I77: 0 | J77: 0 | K77: =SUM(ROUND(I77:J77,0)) -> 0 | L77: Select Yes or No
A78: E-74 | F78: 0 | G78: 0 | H78: =ROUND(F78*G78,0) -> 0 | I78: 0 | J78: 0 | K78: =SUM(ROUND(I78:J78,0)) -> 0 | L78: Select Yes or No
A79: E-75 | F79: 0 | G79: 0 | H79: 0 | I79: 0 | J79: 0 | K79: =SUM(ROUND(I79:J79,0)) -> 0 | L79: Select Yes or No
A80: E-76 | F80: 0 | G80: 0 | H80: 0 | I80: 0 | J80: 0 | K80: =SUM(ROUND(I80:J80,0)) -> 0 | L80: Select Yes or No
A81: E-77 | F81: 0 | G81: 0 | H81: 0 | I81: 0 | J81: 0 | K81: =SUM(ROUND(I81:J81,0)) -> 0 | L81: Select Yes or No
A82: E-78 | F82: 0 | G82: 0 | H82: 0 | I82: 0 | J82: 0 | K82: =SUM(ROUND(I82:J82,0)) -> 0 | L82: Select Yes or No
A83: E-79 | F83: 0 | G83: 0 | H83: 0 | I83: 0 | J83: 0 | K83: =SUM(ROUND(I83:J83,0)) -> 0 | L83: Select Yes or No
A84: E-80 | F84: 0 | G84: 0 | H84: 0 | I84: 0 | J84: 0 | K84: =SUM(ROUND(I84:J84,0)) -> 0 | L84: Select Yes or No
A85: E-81 | F85: 0 | G85: 0 | H85: 0 | I85: 0 | J85: 0 | K85: =SUM(ROUND(I85:J85,0)) -> 0 | L85: Select Yes or No
A86: E-82 | F86: 0 | G86: 0 | H86: 0 | I86: 0 | J86: 0 | K86: =SUM(ROUND(I86:J86,0)) -> 0 | L86: Select Yes or No
A87: E-83 | F87: 0 | G87: 0 | H87: =ROUND(F87*G87,0) -> 0 | I87: 0 | J87: 0 | K87: =SUM(ROUND(I87:J87,0)) -> 0 | L87: Select Yes or No
A88: E-84 | F88: 0 | G88: 0 | H88: =ROUND(F88*G88,0) -> 0 | I88: 0 | J88: 0 | K88: =SUM(ROUND(I88:J88,0)) -> 0 | L88: Select Yes or No
A89: E-85 | F89: 0 | G89: 0 | H89: =ROUND(F89*G89,0) -> 0 | I89: 0 | J89: 0 | K89: =SUM(ROUND(I89:J89,0)) -> 0 | L89: Select Yes or No
A90: E-86 | F90: 0 | G90: 0 | H90: =ROUND(F90*G90,0) -> 0 | I90: 0 | J90: 0 | K90: =SUM(ROUND(I90:J90,0)) -> 0 | L90: Select Yes or No
A91: E-87 | F91: 0 | G91: 0 | H91: 0 | I91: 0 | J91: 0 | K91: =SUM(ROUND(I91:J91,0)) -> 0 | L91: Select Yes or No
A92: E-88 | F92: 0 | G92: 0 | H92: 0 | I92: 0 | J92: 0 | K92: =SUM(ROUND(I92:J92,0)) -> 0 | L92: Select Yes or No
A93: E-89 | F93: 0 | G93: 0 | H93: 0 | I93: 0 | J93: 0 | K93: =SUM(ROUND(I93:J93,0)) -> 0 | L93: Select Yes or No
A94: E-90 | F94: 0 | G94: 0 | H94: 0 | I94: 0 | J94: 0 | K94: =SUM(ROUND(I94:J94,0)) -> 0 | L94: Select Yes or No
A95: E-91 | F95: 0 | G95: 0 | H95: 0 | I95: 0 | J95: 0 | K95: =SUM(ROUND(I95:J95,0)) -> 0 | L95: Select Yes or No
A96: E-92 | F96: 0 | G96: 0 | H96: 0 | I96: 0 | J96: 0 | K96: =SUM(ROUND(I96:J96,0)) -> 0 | L96: Select Yes or No
A97: E-93 | F97: 0 | G97: 0 | H97: 0 | I97: 0 | J97: 0 | K97: =SUM(ROUND(I97:J97,0)) -> 0 | L97: Select Yes or No
A98: E-94 | F98: 0 | G98: 0 | H98: =ROUND(F98*G98,0) -> 0 | I98: 0 | J98: 0 | K98: =SUM(ROUND(I98:J98,0)) -> 0 | L98: Select Yes or No
A99: E-95 | F99: 0 | G99: 0 | H99: =ROUND(F99*G99,0) -> 0 | I99: 0 | J99: 0 | K99: =SUM(ROUND(I99:J99,0)) -> 0 | L99: Select Yes or No
A100: E-96 | F100: 0 | G100: 0 | H100: 0 | I100: 0 | J100: 0 | K100: =SUM(ROUND(I100:J100,0)) -> 0 | L100: Select Yes or No
A101: E-97 | F101: 0 | G101: 0 | H101: 0 | I101: 0 | J101: 0 | K101: =SUM(ROUND(I101:J101,0)) -> 0 | L101: Select Yes or No
A102: E-98 | F102: 0 | G102: 0 | H102: 0 | I102: 0 | J102: 0 | K102: =SUM(ROUND(I102:J102,0)) -> 0 | L102: Select Yes or No
A103: E-99 | F103: 0 | G103: 0 | H103: 0 | I103: 0 | J103: 0 | K103: =SUM(ROUND(I103:J103,0)) -> 0 | L103: Select Yes or No
A104: E-100 | F104: 0 | G104: 0 | H104: 0 | I104: 0 | J104: 0 | K104: =SUM(ROUND(I104:J104,0)) -> 0 | L104: Select Yes or No
A105: E-101 | F105: 0 | G105: 0 | H105: 0 | I105: 0 | J105: 0 | K105: =SUM(ROUND(I105:J105,0)) -> 0 | L105: Select Yes or No
A106: E-102 | F106: 0 | G106: 0 | H106: 0 | I106: 0 | J106: 0 | K106: =SUM(ROUND(I106:J106,0)) -> 0 | L106: Select Yes or No
A107: E-103 | F107: 0 | G107: 0 | H107: 0 | I107: 0 | J107: 0 | K107: =SUM(ROUND(I107:J107,0)) -> 0 | L107: Select Yes or No
A108: E-104 | F108: 0 | G108: 0 | H108: =ROUND(F108*G108,0) -> 0 | I108: 0 | J108: 0 | K108: =SUM(ROUND(I108:J108,0)) -> 0 | L108: Select Yes or No
A109: E-105 | F109: 0 | G109: 0 | H109: =ROUND(F109*G109,0) -> 0 | I109: 0 | J109: 0 | K109: =SUM(ROUND(I109:J109,0)) -> 0 | L109: Select Yes or No
A110: E-106 | F110: 0 | G110: 0 | H110: =ROUND(F110*G110,0) -> 0 | I110: 0 | J110: 0 | K110: =SUM(ROUND(I110:J110,0)) -> 0 | L110: Select Yes or No
A111: E-107 | F111: 0 | G111: 0 | H111: =ROUND(F111*G111,0) -> 0 | I111: 0 | J111: 0 | K111: =SUM(ROUND(I111:J111,0)) -> 0 | L111: Select Yes or No
A112: E-108 | F112: 0 | G112: 0 | H112: 0 | I112: 0 | J112: 0 | K112: =SUM(ROUND(I112:J112,0)) -> 0 | L112: Select Yes or No
A113: E-109 | F113: 0 | G113: 0 | H113: 0 | I113: 0 | J113: 0 | K113: =SUM(ROUND(I113:J113,0)) -> 0 | L113: Select Yes or No
A114: E-110 | F114: 0 | G114: 0 | H114: 0 | I114: 0 | J114: 0 | K114: =SUM(ROUND(I114:J114,0)) -> 0 | L114: Select Yes or No
A115: E-111 | F115: 0 | G115: 0 | H115: 0 | I115: 0 | J115: 0 | K115: =SUM(ROUND(I115:J115,0)) -> 0 | L115: Select Yes or No
A116: E-112 | F116: 0 | G116: 0 | H116: 0 | I116: 0 | J116: 0 | K116: =SUM(ROUND(I116:J116,0)) -> 0 | L116: Select Yes or No
A117: E-113 | F117: 0 | G117: 0 | H117: 0 | I117: 0 | J117: 0 | K117: =SUM(ROUND(I117:J117,0)) -> 0 | L117: Select Yes or No
A118: E-114 | F118: 0 | G118: 0 | H118: 0 | I118: 0 | J118: 0 | K118: =SUM(ROUND(I118:J118,0)) -> 0 | L118: Select Yes or No
A119: E-115 | F119: 0 | G119: 0 | H119: 0 | I119: 0 | J119: 0 | K119: =SUM(ROUND(I119:J119,0)) -> 0 | L119: Select Yes or No
A120: E-116 | F120: 0 | G120: 0 | H120: =ROUND(F120*G120,0) -> 0 | I120: 0 | J120: 0 | K120: =SUM(ROUND(I120:J120,0)) -> 0 | L120: Select Yes or No
A121: E-117 | F121: 0 | G121: 0 | H121: =ROUND(F121*G121,0) -> 0 | I121: 0 | J121: 0 | K121: =SUM(ROUND(I121:J121,0)) -> 0 | L121: Select Yes or No
A122: E-118 | F122: 0 | G122: 0 | H122: =ROUND(F122*G122,0) -> 0 | I122: 0 | J122: 0 | K122: =SUM(ROUND(I122:J122,0)) -> 0 | L122: Select Yes or No
A123: E-119 | F123: 0 | G123: 0 | H123: =ROUND(F123*G123,0) -> 0 | I123: 0 | J123: 0 | K123: =SUM(ROUND(I123:J123,0)) -> 0 | L123: Select Yes or No
A124: E-120 | F124: 0 | G124: 0 | H124: 0 | I124: 0 | J124: 0 | K124: =SUM(ROUND(I124:J124,0)) -> 0 | L124: Select Yes or No
A125: E-121 | F125: 0 | G125: 0 | H125: 0 | I125: 0 | J125: 0 | K125: =SUM(ROUND(I125:J125,0)) -> 0 | L125: Select Yes or No
A126: E-122 | F126: 0 | G126: 0 | H126: 0 | I126: 0 | J126: 0 | K126: =SUM(ROUND(I126:J126,0)) -> 0 | L126: Select Yes or No
A127: E-123 | F127: 0 | G127: 0 | H127: 0 | I127: 0 | J127: 0 | K127: =SUM(ROUND(I127:J127,0)) -> 0 | L127: Select Yes or No
A128: E-124 | F128: 0 | G128: 0 | H128: 0 | I128: 0 | J128: 0 | K128: =SUM(ROUND(I128:J128,0)) -> 0 | L128: Select Yes or No
A129: E-125 | F129: 0 | G129: 0 | H129: 0 | I129: 0 | J129: 0 | K129: =SUM(ROUND(I129:J129,0)) -> 0 | L129: Select Yes or No
A130: E-126 | F130: 0 | G130: 0 | H130: 0 | I130: 0 | J130: 0 | K130: =SUM(ROUND(I130:J130,0)) -> 0 | L130: Select Yes or No
A131: E-127 | F131: 0 | G131: 0 | H131: 0 | I131: 0 | J131: 0 | K131: =SUM(ROUND(I131:J131,0)) -> 0 | L131: Select Yes or No
A132: E-128 | F132: 0 | G132: 0 | H132: =ROUND(F132*G132,0) -> 0 | I132: 0 | J132: 0 | K132: =SUM(ROUND(I132:J132,0)) -> 0 | L132: Select Yes or No
A133: E-129 | F133: 0 | G133: 0 | H133: =ROUND(F133*G133,0) -> 0 | I133: 0 | J133: 0 | K133: =SUM(ROUND(I133:J133,0)) -> 0 | L133: Select Yes or No
A134: E-130 | F134: 0 | G134: 0 | H134: =ROUND(F134*G134,0) -> 0 | I134: 0 | J134: 0 | K134: =SUM(ROUND(I134:J134,0)) -> 0 | L134: Select Yes or No
A135: E-131 | F135: 0 | G135: 0 | H135: =ROUND(F135*G135,0) -> 0 | I135: 0 | J135: 0 | K135: =SUM(ROUND(I135:J135,0)) -> 0 | L135: Select Yes or No
A136: E-132 | F136: 0 | G136: 0 | H136: 0 | I136: 0 | J136: 0 | K136: =SUM(ROUND(I136:J136,0)) -> 0 | L136: Select Yes or No
A137: E-133 | F137: 0 | G137: 0 | H137: 0 | I137: 0 | J137: 0 | K137: =SUM(ROUND(I137:J137,0)) -> 0 | L137: Select Yes or No
A138: E-134 | F138: 0 | G138: 0 | H138: 0 | I138: 0 | J138: 0 | K138: =SUM(ROUND(I138:J138,0)) -> 0 | L138: Select Yes or No
A139: E-135 | F139: 0 | G139: 0 | H139: 0 | I139: 0 | J139: 0 | K139: =SUM(ROUND(I139:J139,0)) -> 0 | L139: Select Yes or No
A140: E-136 | F140: 0 | G140: 0 | H140: 0 | I140: 0 | J140: 0 | K140: =SUM(ROUND(I140:J140,0)) -> 0 | L140: Select Yes or No
A141: E-137 | F141: 0 | G141: 0 | H141: 0 | I141: 0 | J141: 0 | K141: =SUM(ROUND(I141:J141,0)) -> 0 | L141: Select Yes or No
A142: E-138 | F142: 0 | G142: 0 | H142: 0 | I142: 0 | J142: 0 | K142: =SUM(ROUND(I142:J142,0)) -> 0 | L142: Select Yes or No
A143: E-139 | F143: 0 | G143: 0 | H143: 0 | I143: 0 | J143: 0 | K143: =SUM(ROUND(I143:J143,0)) -> 0 | L143: Select Yes or No
A144: E-140 | F144: 0 | G144: 0 | H144: 0 | I144: 0 | J144: 0 | K144: =SUM(ROUND(I144:J144,0)) -> 0 | L144: Select Yes or No
A145: E-141 | F145: 0 | G145: 0 | H145: 0 | I145: 0 | J145: 0 | K145: =SUM(ROUND(I145:J145,0)) -> 0 | L145: Select Yes or No
A146: E-142 | F146: 0 | G146: 0 | H146: 0 | I146: 0 | J146: 0 | K146: =SUM(ROUND(I146:J146,0)) -> 0 | L146: Select Yes or No
A147: E-143 | F147: 0 | G147: 0 | H147: 0 | I147: 0 | J147: 0 | K147: =SUM(ROUND(I147:J147,0)) -> 0 | L147: Select Yes or No
A148: E-144 | F148: 0 | G148: 0 | H148: 0 | I148: 0 | J148: 0 | K148: =SUM(ROUND(I148:J148,0)) -> 0 | L148: Select Yes or No
A149: E-145 | F149: 0 | G149: 0 | H149: =ROUND(F149*G149,0) -> 0 | I149: 0 | J149: 0 | K149: =SUM(ROUND(I149:J149,0)) -> 0 | L149: Select Yes or No
A150: E-146 | F150: 0 | G150: 0 | H150: =ROUND(F150*G150,0) -> 0 | I150: 0 | J150: 0 | K150: =SUM(ROUND(I150:J150,0)) -> 0 | L150: Select Yes or No
A151: E-147 | F151: 0 | G151: 0 | H151: =ROUND(F151*G151,0) -> 0 | I151: 0 | J151: 0 | K151: =SUM(ROUND(I151:J151,0)) -> 0 | L151: Select Yes or No
A152: E-148 | F152: 0 | G152: 0 | H152: =ROUND(F152*G152,0) -> 0 | I152: 0 | J152: 0 | K152: =SUM(ROUND(I152:J152,0)) -> 0 | L152: Select Yes or No
A153: E-149 | F153: 0 | G153: 0 | H153: 0 | I153: 0 | J153: 0 | K153: =SUM(ROUND(I153:J153,0)) -> 0 | L153: Select Yes or No
A154: E-150 | F154: 0 | G154: 0 | H154: 0 | I154: 0 | J154: 0 | K154: =SUM(ROUND(I154:J154,0)) -> 0 | L154: Select Yes or No
A155: E-151 | F155: 0 | G155: 0 | H155: 0 | I155: 0 | J155: 0 | K155: =SUM(ROUND(I155:J155,0)) -> 0 | L155: Select Yes or No
A156: E-152 | F156: 0 | G156: 0 | H156: 0 | I156: 0 | J156: 0 | K156: =SUM(ROUND(I156:J156,0)) -> 0 | L156: Select Yes or No
A157: E-153 | F157: 0 | G157: 0 | H157: 0 | I157: 0 | J157: 0 | K157: =SUM(ROUND(I157:J157,0)) -> 0 | L157: Select Yes or No
A158: E-154 | F158: 0 | G158: 0 | H158: 0 | I158: 0 | J158: 0 | K158: =SUM(ROUND(I158:J158,0)) -> 0 | L158: Select Yes or No
A159: E-155 | F159: 0 | G159: 0 | H159: 0 | I159: 0 | J159: 0 | K159: =SUM(ROUND(I159:J159,0)) -> 0 | L159: Select Yes or No
A160: E-156 | F160: 0 | G160: 0 | H160: =ROUND(F160*G160,0) -> 0 | I160: 0 | J160: 0 | K160: =SUM(ROUND(I160:J160,0)) -> 0 | L160: Select Yes or No
A161: E-157 | F161: 0 | G161: 0 | H161: =ROUND(F161*G161,0) -> 0 | I161: 0 | J161: 0 | K161: =SUM(ROUND(I161:J161,0)) -> 0 | L161: Select Yes or No
A162: E-158 | F162: 0 | G162: 0 | H162: 0 | I162: 0 | J162: 0 | K162: =SUM(ROUND(I162:J162,0)) -> 0 | L162: Select Yes or No
A163: E-159 | F163: 0 | G163: 0 | H163: 0 | I163: 0 | J163: 0 | K163: =SUM(ROUND(I163:J163,0)) -> 0 | L163: Select Yes or No
A164: E-160 | F164: 0 | G164: 0 | H164: 0 | I164: 0 | J164: 0 | K164: =SUM(ROUND(I164:J164,0)) -> 0 | L164: Select Yes or No
A165: E-161 | F165: 0 | G165: 0 | H165: 0 | I165: 0 | J165: 0 | K165: =SUM(ROUND(I165:J165,0)) -> 0 | L165: Select Yes or No
A166: E-162 | F166: 0 | G166: 0 | H166: 0 | I166: 0 | J166: 0 | K166: =SUM(ROUND(I166:J166,0)) -> 0 | L166: Select Yes or No
A167: E-163 | F167: 0 | G167: 0 | H167: 0 | I167: 0 | J167: 0 | K167: =SUM(ROUND(I167:J167,0)) -> 0 | L167: Select Yes or No
A168: E-164 | F168: 0 | G168: 0 | H168: 0 | I168: 0 | J168: 0 | K168: =SUM(ROUND(I168:J168,0)) -> 0 | L168: Select Yes or No
A169: E-165 | F169: 0 | G169: 0 | H169: 0 | I169: 0 | J169: 0 | K169: =SUM(ROUND(I169:J169,0)) -> 0 | L169: Select Yes or No
A170: E-166 | F170: 0 | G170: 0 | H170: =ROUND(F170*G170,0) -> 0 | I170: 0 | J170: 0 | K170: =SUM(ROUND(I170:J170,0)) -> 0 | L170: Select Yes or No
A171: E-167 | F171: 0 | G171: 0 | H171: =ROUND(F171*G171,0) -> 0 | I171: 0 | J171: 0 | K171: =SUM(ROUND(I171:J171,0)) -> 0 | L171: Select Yes or No
A172: E-168 | F172: 0 | G172: 0 | H172: =ROUND(F172*G172,0) -> 0 | I172: 0 | J172: 0 | K172: =SUM(ROUND(I172:J172,0)) -> 0 | L172: Select Yes or No
A173: E-169 | F173: 0 | G173: 0 | H173: =ROUND(F173*G173,0) -> 0 | I173: 0 | J173: 0 | K173: =SUM(ROUND(I173:J173,0)) -> 0 | L173: Select Yes or No
A174: E-170 | F174: 0 | G174: 0 | H174: 0 | I174: 0 | J174: 0 | K174: =SUM(ROUND(I174:J174,0)) -> 0 | L174: Select Yes or No
A175: E-171 | F175: 0 | G175: 0 | H175: 0 | I175: 0 | J175: 0 | K175: =SUM(ROUND(I175:J175,0)) -> 0 | L175: Select Yes or No
A176: E-172 | F176: 0 | G176: 0 | H176: 0 | I176: 0 | J176: 0 | K176: =SUM(ROUND(I176:J176,0)) -> 0 | L176: Select Yes or No
A177: E-173 | F177: 0 | G177: 0 | H177: 0 | I177: 0 | J177: 0 | K177: =SUM(ROUND(I177:J177,0)) -> 0 | L177: Select Yes or No
A178: E-174 | F178: 0 | G178: 0 | H178: 0 | I178: 0 | J178: 0 | K178: =SUM(ROUND(I178:J178,0)) -> 0 | L178: Select Yes or No
A179: E-175 | F179: 0 | G179: 0 | H179: 0 | I179: 0 | J179: 0 | K179: =SUM(ROUND(I179:J179,0)) -> 0 | L179: Select Yes or No
A180: E-176 | F180: 0 | G180: 0 | H180: 0 | I180: 0 | J180: 0 | K180: =SUM(ROUND(I180:J180,0)) -> 0 | L180: Select Yes or No
A181: E-177 | F181: 0 | G181: 0 | H181: 0 | I181: 0 | J181: 0 | K181: =SUM(ROUND(I181:J181,0)) -> 0 | L181: Select Yes or No
A182: E-178 | F182: 0 | G182: 0 | H182: =ROUND(F182*G182,0) -> 0 | I182: 0 | J182: 0 | K182: =SUM(ROUND(I182:J182,0)) -> 0 | L182: Select Yes or No
A183: E-179 | F183: 0 | G183: 0 | H183: =ROUND(F183*G183,0) -> 0 | I183: 0 | J183: 0 | K183: =SUM(ROUND(I183:J183,0)) -> 0 | L183: Select Yes or No
A184: E-180 | F184: 0 | G184: 0 | H184: =ROUND(F184*G184,0) -> 0 | I184: 0 | J184: 0 | K184: =SUM(ROUND(I184:J184,0)) -> 0 | L184: Select Yes or No
A185: E-181 | F185: 0 | G185: 0 | H185: =ROUND(F185*G185,0) -> 0 | I185: 0 | J185: 0 | K185: =SUM(ROUND(I185:J185,0)) -> 0 | L185: Select Yes or No
A186: E-182 | F186: 0 | G186: 0 | H186: 0 | I186: 0 | J186: 0 | K186: =SUM(ROUND(I186:J186,0)) -> 0 | L186: Select Yes or No
A187: E-183 | F187: 0 | G187: 0 | H187: 0 | I187: 0 | J187: 0 | K187: =SUM(ROUND(I187:J187,0)) -> 0 | L187: Select Yes or No
A188: E-184 | F188: 0 | G188: 0 | H188: 0 | I188: 0 | J188: 0 | K188: =SUM(ROUND(I188:J188,0)) -> 0 | L188: Select Yes or No
A189: E-185 | F189: 0 | G189: 0 | H189: 0 | I189: 0 | J189: 0 | K189: =SUM(ROUND(I189:J189,0)) -> 0 | L189: Select Yes or No
A190: E-186 | F190: 0 | G190: 0 | H190: 0 | I190: 0 | J190: 0 | K190: =SUM(ROUND(I190:J190,0)) -> 0 | L190: Select Yes or No
A191: E-187 | F191: 0 | G191: 0 | H191: 0 | I191: 0 | J191: 0 | K191: =SUM(ROUND(I191:J191,0)) -> 0 | L191: Select Yes or No
A192: E-188 | F192: 0 | G192: 0 | H192: 0 | I192: 0 | J192: 0 | K192: =SUM(ROUND(I192:J192,0)) -> 0 | L192: Select Yes or No
A193: E-189 | F193: 0 | G193: 0 | H193: 0 | I193: 0 | J193: 0 | K193: =SUM(ROUND(I193:J193,0)) -> 0 | L193: Select Yes or No
A194: E-190 | F194: 0 | G194: 0 | H194: =ROUND(F194*G194,0) -> 0 | I194: 0 | J194: 0 | K194: =SUM(ROUND(I194:J194,0)) -> 0 | L194: Select Yes or No
A195: E-191 | F195: 0 | G195: 0 | H195: =ROUND(F195*G195,0) -> 0 | I195: 0 | J195: 0 | K195: =SUM(ROUND(I195:J195,0)) -> 0 | L195: Select Yes or No
A196: E-192 | F196: 0 | G196: 0 | H196: =ROUND(F196*G196,0) -> 0 | I196: 0 | J196: 0 | K196: =SUM(ROUND(I196:J196,0)) -> 0 | L196: Select Yes or No
A197: E-193 | F197: 0 | G197: 0 | H197: =ROUND(F197*G197,0) -> 0 | I197: 0 | J197: 0 | K197: =SUM(ROUND(I197:J197,0)) -> 0 | L197: Select Yes or No
A198: E-194 | F198: 0 | G198: 0 | H198: 0 | I198: 0 | J198: 0 | K198: =SUM(ROUND(I198:J198,0)) -> 0 | L198: Select Yes or No
A199: E-195 | F199: 0 | G199: 0 | H199: 0 | I199: 0 | J199: 0 | K199: =SUM(ROUND(I199:J199,0)) -> 0 | L199: Select Yes or No
A200: E-196 | F200: 0 | G200: 0 | H200: 0 | I200: 0 | J200: 0 | K200: =SUM(ROUND(I200:J200,0)) -> 0 | L200: Select Yes or No
... 9 more rows

Sheet Materials & Misc.
A1: AGREEMENT BUDGET | I1: SANDBOX AREA (highlighted in light red)- For rough work associated with the print area to the left. Rough work may include, notes, calculations, derivations, etc.
A2: Materials & Miscellaneous
A3: ='Category Budget'!$B$3 -> Organization Name
B4: CEC Share | C4: Match Share | D4: Total
A5: Grand Totals | B5: 35000 | C5: 10000 | D5: =SUM(ROUND(B5:C5,0)) -> 45000

Sheet Subrecipients & Vendors
A1: AGREEMENT BUDGET | O1: SANDBOX AREA (highlighted in light red)- For rough work associated with the print area to the left. Rough work may include, notes, calculations, derivations, etc.
A2: Subrecipients & Vendors
A3: ='Category Budget'!$B$3 -> Organization Name
A4: Subrecipients
A5: Reference ID | B5: Task # | C5: Subrecipient Name | D5: Purpose | E5: CA Business Certifications DVBE/ SB/MB/None | F5: CEC Share | G5: Match Share | H5: Total | I5: Line Item Revised Since Last Approved Budget? | J5: Notes
A6: S-1 | B6: 3 | C6: M&M, Inc. | D6: To help collect data | E6: None | F6: 50000.49 | G6: 30000.49 | H6: =SUM(ROUND(F6:G6,0)) -> 80000 | I6: Select Yes or No
A7: S-2 | B7: 5 | C7: ABC National Lab | D7: To help collect data | E7: None | F7: 50000 | G7: 40000 | H7: =SUM(ROUND(F7:G7,0)) -> 90000 | I7: Select Yes or No
A8: S-3 | E8: None | F8: 0 | G8: 0 | H8: =SUM(ROUND(F8:G8,0)) -> 0 | I8: Select Yes or No
A9: S-4 | E9: None | F9: 0 | G9: 0 | H9: =SUM(ROUND(F9:G9,0)) -> 0 | I9: Select Yes or No
A10: S-5 | E10: None | F10: 0 | G10: 0 | H10: =SUM(ROUND(F10:G10,0)) -> 0 | I10: Select Yes or No
A11: S-6 | E11: None | F11: 0 | G11: 0 | H11: =SUM(ROUND(F11:G11,0)) -> 0 | I11: Select Yes or No
A12: S-7 | E12: None | F12: 0 | G12: 0 | H12: =SUM(ROUND(F12:G12,0)) -> 0 | I12: Select Yes or No
A13: S-8 | E13: None | F13: 0 | G13: 0 | H13: =SUM(ROUND(F13:G13,0)) -> 0 | I13: Select Yes or No
A14: S-9 | E14: None | F14: 0 | G14: 0 | H14: =SUM(ROUND(F14:G14,0)) -> 0 | I14: Select Yes or No
A15: S-10 | E15: None | F15: 0 | G15: 0 | H15: =SUM(ROUND(F15:G15,0)) -> 0 | I15: Select Yes or No
A16: S-11 | E16: None | F16: 0 | G16: 0 | H16: =SUM(ROUND(F16:G16,0)) -> 0 | I16: Select Yes or No
A17: S-12 | E17: None | F17: 0 | G17: 0 | H17: =SUM(ROUND(F17:G17,0)) -> 0 | I17: Select Yes or No
A18: S-13 | E18: None | F18: 0 | G18: 0 | H18: =SUM(ROUND(F18:G18,0)) -> 0 | I18: Select Yes or No
A19: S-14 | E19: None | F19: 0 | G19: 0 | H19: =SUM(ROUND(F19:G19,0)) -> 0 | I19: Select Yes or No
A20: S-15 | E20: None | F20: 0 | G20: 0 | H20: =SUM(ROUND(F20:G20,0)) -> 0 | I20: Select Yes or No
A21: S-16 | E21: None | F21: 0 | G21: 0 | H21: =SUM(ROUND(F21:G21,0)) -> 0 | I21: Select Yes or No
A22: S-17 | E22: None | F22: 0 | G22: 0 | H22: =SUM(ROUND(F22:G22,0)) -> 0 | I22: Select Yes or No
A23: S-18 | E23: None | F23: 0 | G23: 0 | H23: =SUM(ROUND(F23:G23,0)) -> 0 | I23: Select Yes or No
A24: S-19 | E24: None | F24: 0 | G24: 0 | H24: =SUM(ROUND(F24:G24,0)) -> 0 | I24: Select Yes or No
A25: S-20 | E25: None | F25: 0 | G25: 0 | H25: =SUM(ROUND(F25:G25,0)) -> 0 | I25: Select Yes or No
A26: S-21 | E26: None | F26: 0 | G26: 0 | H26: =SUM(ROUND(F26:G26,0)) -> 0 | I26: Select Yes or No
A27: S-22 | E27: None | F27: 0 | G27: 0 | H27: =SUM(ROUND(F27:G27,0)) -> 0 | I27: Select Yes or No
A28: S-23 | E28: None | F28: 0 | G28: 0 | H28: =SUM(ROUND(F28:G28,0)) -> 0 | I28: Select Yes or No
A29: S-24 | E29: None | F29: 0 | G29: 0 | H29: =SUM(ROUND(F29:G29,0)) -> 0 | I29: Select Yes or No
A30: S-25 | E30: None | F30: 0 | G30: 0 | H30: =SUM(ROUND(F30:G30,0)) -> 0 | I30: Select Yes or No
A31: S-26 | E31: None | F31: 0 | G31: 0 | H31: =SUM(ROUND(F31:G31,0)) -> 0 | I31: Select Yes or No
A32: S-27 | E32: None | F32: 0 | G32: 0 | H32: =SUM(ROUND(F32:G32,0)) -> 0 | I32: Select Yes or No
A33: S-28 | E33: None | F33: 0 | G33: 0 | H33: =SUM(ROUND(F33:G33,0)) -> 0 | I33: Select Yes or No
A34: S-29 | E34: None | F34: 0 | G34: 0 | H34: =SUM(ROUND(F34:G34,0)) -> 0 | I34: Select Yes or No
A35: S-30 | E35: None | F35: 0 | G35: 0 | H35: =SUM(ROUND(F35:G35,0)) -> 0 | I35: Select Yes or No
A36: S-31 | E36: None | F36: 0 | G36: 0 | H36: =SUM(ROUND(F36:G36,0)) -> 0 | I36: Select Yes or No
A37: S-32 | E37: None | F37: 0 | G37: 0 | H37: =SUM(ROUND(F37:G37,0)) -> 0 | I37: Select Yes or No
A38: S-33 | E38: None | F38: 0 | G38: 0 | H38: =SUM(ROUND(F38:G38,0)) -> 0 | I38: Select Yes or No
A39: S-34 | E39: None | F39: 0 | G39: 0 | H39: =SUM(ROUND(F39:G39,0)) -> 0 | I39: Select Yes or No
A40: S-35 | E40: None | F40: 0 | G40: 0 | H40: =SUM(ROUND(F40:G40,0)) -> 0 | I40: Select Yes or No
A41: S-36 | E41: None | F41: 0 | G41: 0 | H41: =SUM(ROUND(F41:G41,0)) -> 0 | I41: Select Yes or No
A42: S-37 | E42: None | F42: 0 | G42: 0 | H42: =SUM(ROUND(F42:G42,0)) -> 0 | I42: Select Yes or No
A43: S-38 | E43: None | F43: 0 | G43: 0 | H43: =SUM(ROUND(F43:G43,0)) -> 0 | I43: Select Yes or No
A44: S-39 | E44: None | F44: 0 | G44: 0 | H44: =SUM(ROUND(F44:G44,0)) -> 0 | I44: Select Yes or No
A45: S-40 | E45: None | F45: 0 | G45: 0 | H45: =SUM(ROUND(F45:G45,0)) -> 0 | I45: Select Yes or No
A46: S-41 | E46: None | F46: 0 | G46: 0 | H46: =SUM(ROUND(F46:G46,0)) -> 0 | I46: Select Yes or No
A47: S-42 | E47: None | F47: 0 | G47: 0 | H47: =SUM(ROUND(F47:G47,0)) -> 0 | I47: Select Yes or No
A48: S-43 | E48: None | F48: 0 | G48: 0 | H48: =SUM(ROUND(F48:G48,0)) -> 0 | I48: Select Yes or No
A49: S-44 | E49: None | F49: 0 | G49: 0 | H49: =SUM(ROUND(F49:G49,0)) -> 0 | I49: Select Yes or No
A50: S-45 | E50: None | F50: 0 | G50: 0 | H50: =SUM(ROUND(F50:G50,0)) -> 0 | I50: Select Yes or No
A51: S-46 | E51: None | F51: 0 | G51: 0 | H51: =SUM(ROUND(F51:G51,0)) -> 0 | I51: Select Yes or No
A52: S-47 | E52: None | F52: 0 | G52: 0 | H52: =SUM(ROUND(F52:G52,0)) -> 0 | I52: Select Yes or No
A53: S-48 | E53: None | F53: 0 | G53: 0 | H53: =SUM(ROUND(F53:G53,0)) -> 0 | I53: Select Yes or No
A54: S-49 | C54: CEC USE ONLY | E54: None | F54: 0 | G54: 0 | H54: =SUM(ROUND(F54:G54,0)) -> 0 | I54: Select Yes or No
A55: S-50 | C55: CEC USE ONLY | E55: None | F55: 0 | G55: 0 | H55: =SUM(ROUND(F55:G55,0)) -> 0 | I55: Select Yes or No
A56: Subrecipient Totals | F56: =SUM(ROUND(F6:F55,0)) -> 100000 | G56: =SUM(ROUND(G6:G55,0)) -> 70000 | H56: =SUM(H6:H55) -> 170000
A58: Vendors
A59: Reference ID | B59: Task # | C59: Vendor Name | D59: Purpose | E59: CA Business Certifications DVBE/ SB/MB/None | F59: CEC Share | G59: Match Share | H59: Total
A60: V-1 | B60: 4 | C60: Alpha Security, Inc. | D60: To provide software | E60: None | F60: 1000.49 | G60: 1000.49 | H60: =SUM(ROUND(F60:G60,0)) -> 2000 | I60: Select Yes or No
A61: V-2 | E61: None | F61: 0 | G61: 0 | H61: =SUM(ROUND(F61:G61,0)) -> 0 | I61: Select Yes or No
A62: V-3 | E62: None | F62: 0 | G62: 0 | H62: =SUM(ROUND(F62:G62,0)) -> 0 | I62: Select Yes or No
A63: V-4 | E63: None | F63: 0 | G63: 0 | H63: =SUM(ROUND(F63:G63,0)) -> 0 | I63: Select Yes or No
A64: V-5 | E64: None | F64: 0 | G64: 0 | H64: =SUM(ROUND(F64:G64,0)) -> 0 | I64: Select Yes or No
A65: V-6 | E65: None | F65: 0 | G65: 0 | H65: =SUM(ROUND(F65:G65,0)) -> 0 | I65: Select Yes or No
A66: V-7 | E66: None | F66: 0 | G66: 0 | H66: =SUM(ROUND(F66:G66,0)) -> 0 | I66: Select Yes or No
A67: V-8 | E67: None | F67: 0 | G67: 0 | H67: =SUM(ROUND(F67:G67,0)) -> 0 | I67: Select Yes or No
A68: V-9 | E68: None | F68: 0 | G68: 0 | H68: =SUM(ROUND(F68:G68,0)) -> 0 | I68: Select Yes or No
A69: V-10 | E69: None | F69: 0 | G69: 0 | H69: =SUM(ROUND(F69:G69,0)) -> 0 | I69: Select Yes or No
A70: V-11 | E70: None | F70: 0 | G70: 0 | H70: =SUM(ROUND(F70:G70,0)) -> 0 | I70: Select Yes or No
A71: V-12 | E71: None | F71: 0 | G71: 0 | H71: =SUM(ROUND(F71:G71,0)) -> 0 | I71: Select Yes or No
A72: V-13 | E72: None | F72: 0 | G72: 0 | H72: =SUM(ROUND(F72:G72,0)) -> 0 | I72: Select Yes or No
A73: V-14 | E73: None | F73: 0 | G73: 0 | H73: =SUM(ROUND(F73:G73,0)) -> 0 | I73: Select Yes or No
A74: V-15 | E74: None | F74: 0 | G74: 0 | H74: =SUM(ROUND(F74:G74,0)) -> 0 | I74: Select Yes or No
A75: V-16 | E75: None | F75: 0 | G75: 0 | H75: =SUM(ROUND(F75:G75,0)) -> 0 | I75: Select Yes or No
A76: V-17 | E76: None | F76: 0 | G76: 0 | H76: =SUM(ROUND(F76:G76,0)) -> 0 | I76: Select Yes or No
A77: V-18 | E77: None | F77: 0 | G77: 0 | H77: =SUM(ROUND(F77:G77,0)) -> 0 | I77: Select Yes or No
A78: V-19 | E78: None | F78: 0 | G78: 0 | H78: =SUM(ROUND(F78:G78,0)) -> 0 | I78: Select Yes or No
A79: V-20 | E79: None | F79: 0 | G79: 0 | H79: =SUM(ROUND(F79:G79,0)) -> 0 | I79: Select Yes or No
A80: V-21 | E80: None | F80: 0 | G80: 0 | H80: =SUM(ROUND(F80:G80,0)) -> 0 | I80: Select Yes or No
A81: V-22 | E81: None | F81: 0 | G81: 0 | H81: =SUM(ROUND(F81:G81,0)) -> 0 | I81: Select Yes or No
A82: V-23 | E82: None | F82: 0 | G82: 0 | H82: =SUM(ROUND(F82:G82,0)) -> 0 | I82: Select Yes or No
A83: V-24 | E83: None | F83: 0 | G83: 0 | H83: =SUM(ROUND(F83:G83,0)) -> 0 | I83: Select Yes or No
A84: V-25 | E84: None | F84: 0 | G84: 0 | H84: =SUM(ROUND(F84:G84,0)) -> 0 | I84: Select Yes or No
A85: V-26 | E85: None | F85: 0 | G85: 0 | H85: =SUM(ROUND(F85:G85,0)) -> 0 | I85: Select Yes or No
A86: V-27 | E86: None | F86: 0 | G86: 0 | H86: =SUM(ROUND(F86:G86,0)) -> 0 | I86: Select Yes or No
A87: V-28 | E87: None | F87: 0 | G87: 0 | H87: =SUM(ROUND(F87:G87,0)) -> 0 | I87: Select Yes or No
A88: V-29 | E88: None | F88: 0 | G88: 0 | H88: =SUM(ROUND(F88:G88,0)) -> 0 | I88: Select Yes or No
A89: V-30 | E89: None | F89: 0 | G89: 0 | H89: =SUM(ROUND(F89:G89,0)) -> 0 | I89: Select Yes or No
A90: V-31 | E90: None | F90: 0 | G90: 0 | H90: =SUM(ROUND(F90:G90,0)) -> 0 | I90: Select Yes or No
A91: V-32 | E91: None | F91: 0 | G91: 0 | H91: =SUM(ROUND(F91:G91,0)) -> 0 | I91: Select Yes or No
A92: V-33 | E92: None | F92: 0 | G92: 0 | H92: =SUM(ROUND(F92:G92,0)) -> 0 | I92: Select Yes or No
A93: V-34 | E93: None | F93: 0 | G93: 0 | H93: =SUM(ROUND(F93:G93,0)) -> 0 | I93: Select Yes or No
A94: V-35 | E94: None | F94: 0 | G94: 0 | H94: =SUM(ROUND(F94:G94,0)) -> 0 | I94: Select Yes or No
A95: V-36 | E95: None | F95: 0 | G95: 0 | H95: =SUM(ROUND(F95:G95,0)) -> 0 | I95: Select Yes or No
A96: V-37 | E96: None | F96: 0 | G96: 0 | H96: =SUM(ROUND(F96:G96,0)) -> 0 | I96: Select Yes or No
A97: V-38 | E97: None | F97: 0 | G97: 0 | H97: =SUM(ROUND(F97:G97,0)) -> 0 | I97: Select Yes or No
A98: V-39 | E98: None | F98: 0 | G98: 0 | H98: =SUM(ROUND(F98:G98,0)) -> 0 | I98: Select Yes or No
A99: V-40 | E99: None | F99: 0 | G99: 0 | H99: =SUM(ROUND(F99:G99,0)) -> 0 | I99: Select Yes or No
A100: V-41 | E100: None | F100: 0 | G100: 0 | H100: =SUM(ROUND(F100:G100,0)) -> 0 | I100: Select Yes or No
A101: V-42 | E101: None | F101: 0 | G101: 0 | H101: =SUM(ROUND(F101:G101,0)) -> 0 | I101: Select Yes or No
A102: V-43 | E102: None | F102: 0 | G102: 0 | H102: =SUM(ROUND(F102:G102,0)) -> 0 | I102: Select Yes or No
A103: V-44 | E103: None | F103: 0 | G103: 0 | H103: =SUM(ROUND(F103:G103,0)) -> 0 | I103: Select Yes or No
A104: V-45 | E104: None | F104: 0 | G104: 0 | H104: =SUM(ROUND(F104:G104,0)) -> 0 | I104: Select Yes or No
A105: V-46 | E105: None | F105: 0 | G105: 0 | H105: =SUM(ROUND(F105:G105,0)) -> 0 | I105: Select Yes or No
A106: V-47 | E106: None | F106: 0 | G106: 0 | H106: =SUM(ROUND(F106:G106,0)) -> 0 | I106: Select Yes or No
A107: V-48 | E107: None | F107: 0 | G107: 0 | H107: =SUM(ROUND(F107:G107,0)) -> 0 | I107: Select Yes or No
A108: V-49 | C108: CEC USE ONLY | E108: None | F108: 0 | G108: 0 | H108: =SUM(ROUND(F108:G108,0)) -> 0 | I108: Select Yes or No
A109: V-50 | C109: CEC USE ONLY | E109: None | F109: 0 | G109: 0 | H109: =SUM(ROUND(F109:G109,0)) -> 0 | I109: Select Yes or No
A110: Vendor Totals | F110: =SUM(ROUND(F60:F109,0)) -> 1000 | G110: =SUM(ROUND(G60:G109,0)) -> 1000 | H110: =SUM(H60:H109) -> 2000
A112: Subrecipients & Vendors Grand Totals
F113: CEC Share | G113: Match Share | H113: Total
A114: Grand Totals | F114: =F56+F110 -> 101000 | G114: =G56+G110 -> 71000 | H114: =H56+H110 -> 172000
A116: Worksheet Specific Instructions
A117: CONDITIONAL FORMATTING APPLIED: If the "Line Item Revised Since Last Approved Budget?" column is changed to Yes, the text in the entire row will turn red in order to highlight the change.

Sheet Indirect Costs & Profit
A1: AGREEMENT BUDGET | I1: SANDBOX AREA (highlighted in light red)- For rough work associated with the print area to the left. Rough work may include, notes, calculations, derivations, etc.
A2: Indirect Costs and Profit
A3: ='Category Budget'!$B$3 -> Organization Name
A4: Select an Indirect Cost Rate Option
A5: Indirect Cost(s)
B6: CEC Share | C6: Match Share | D6: Total
A7: Indirect Costs Grand Totals | B7: 117051 | C7: 8040 | D7: =SUM(ROUND(B7:C7,0)) -> 125091
A9: Profit
B10: CEC Share | C10: Match Share | D10: Total
A11: Profit Grand Totals | B11: 49975 | C11: 3600 | D11: =SUM(ROUND(B11:C11,0)) -> 53575

Sheet Amendments
A1: AGREEMENT BUDGET | M1: SANDBOX AREA (highlighted in light red)- For rough work associated with the print area to the left. Rough work may include, notes, calculations, derivations, etc.
A2: Budget Changes after Agreement Execution
A3: ='Category Budget'!$B$3 -> Organization Name
A4: Change # | B4: Date Approved | C4: Budget Categories | D4: Amount of CEC Funds Moving Between Categories | E4: Amount of Match Funds Moving Between Categories | F4: Description | G4: Total Amount of CEC Funds Moving Between Categories | H4: Cumulative CEC Total Over Life of Agreement
A5: 1 | B5: 2020-12-04 | C5: Direct Labor | D5: 25000 | E5: 0 | F5: We require more labor and require less mat. & misc. items then originally estimated | G5: 50000 | H5: =G5 -> 50000
C6: Fringe Benefits | D6: 25000 | E6: 0
C7: Travel | D7: 0 | E7: 0
C8: Equipment | D8: 0 | E8: 0
C9: Materials/Misc. | D9: -50000 | E9: 0
C10: Subrecipients/Vendors | D10: 0 | E10: 0
C11: Indirect Cost | D11: 0 | E11: 0
C12: Total | D12: =SUM(D5:D11) -> 0 | E12: =SUM(E5:E11) -> 0
A13: 2 | B13: 2021-03-04 | C13: Direct Labor | D13: 0 | E13: 0 | F13: We required a vendor for certain mat & misc. items | G13: 150000 | H13: =H5+G13 -> 200000
C14: Fringe Benefits | D14: 0 | E14: 0
C15: Travel | D15: 0 | E15: 0
C16: Equipment | D16: 0 | E16: 0
C17: Materials/Misc. | D17: -150000 | E17: 0
C18: Subrecipients/Vendors | D18: 150000 | E18: 0
C19: Indirect Cost | D19: 0 | E19: 0
C20: Total | D20: =SUM(D13:D19) -> 0 | E20: =SUM(E13:E19) -> 0
A21: 3 | C21: Direct Labor | D21: 100000 | E21: 0 | F21: We did not require certain equipment | G21: 350000 | H21: =H13+G21 -> 550000
C22: Fringe Benefits | D22: 25000 | E22: 0
C23: Travel | D23: 0 | E23: 0
C24: Equipment | D24: -350000 | E24: 0
C25: Materials/Misc. | D25: 25000 | E25: 0
C26: Subrecipients/Vendors | D26: 200000 | E26: 0
C27: Indirect Cost | D27: 0 | E27: 0
C28: Total | D28: =SUM(D21:D27) -> 0 | E28: =SUM(E21:E27) -> 0
A29: 4 | C29: Direct Labor | D29: 0 | E29: 0 | G29: 0 | H29: =H21+G29 -> 550000
C30: Fringe Benefits | D30: 0 | E30: 0
C31: Travel | D31: 0 | E31: 0
C32: Equipment | D32: 0 | E32: 0
C33: Materials/Misc. | D33: 0 | E33: 0
C34: Subrecipients/Vendors | D34: 0 | E34: 0
C35: Indirect Cost | D35: 0 | E35: 0
C36: Total | D36: =SUM(D29:D35) -> 0 | E36: =SUM(E29:E35) -> 0
A37: 5 | C37: Direct Labor | D37: 0 | E37: 0 | G37: 0 | H37: =H29+G37 -> 550000
C38: Fringe Benefits | D38: 0 | E38: 0
C39: Travel | D39: 0 | E39: 0
C40: Equipment | D40: 0 | E40: 0
C41: Materials/Misc. | D41: 0 | E41: 0
C42: Subrecipients/Vendors | D42: 0 | E42: 0
C43: Indirect Cost | D43: 0 | E43: 0
C44: Total | D44: =SUM(D37:D43) -> 0 | E44: =SUM(E37:E43) -> 0
A45: 6 | C45: Direct Labor | D45: 0 | E45: 0 | G45: 0 | H45: =H37+G45 -> 550000
C46: Fringe Benefits | D46: 0 | E46: 0
C47: Travel | D47: 0 | E47: 0
C48: Equipment | D48: 0 | E48: 0
C49: Materials/Misc. | D49: 0 | E49: 0
C50: Subrecipients/Vendors | D50: 0 | E50: 0
C51: Indirect Cost | D51: 0 | E51: 0
C52: Total | D52: =SUM(D45:D51) -> 0 | E52: =SUM(E45:E51) -> 0
A53: 7 | C53: Direct Labor | D53: 0 | E53: 0 | G53: 0 | H53: =H45+G53 -> 550000
C54: Fringe Benefits | D54: 0 | E54: 0
C55: Travel | D55: 0 | E55: 0
C56: Equipment | D56: 0 | E56: 0
C57: Materials/Misc. | D57: 0 | E57: 0
C58: Subrecipients/Vendors | D58: 0 | E58: 0
C59: Indirect Cost | D59: 0 | E59: 0
C60: Total | D60: =SUM(D53:D59) -> 0 | E60: =SUM(E53:E59) -> 0
A61: 8 | C61: Direct Labor | D61: 0 | E61: 0 | G61: 0 | H61: =H53+G61 -> 550000
C62: Fringe Benefits | D62: 0 | E62: 0
C63: Travel | D63: 0 | E63: 0
C64: Equipment | D64: 0 | E64: 0
C65: Materials/Misc. | D65: 0 | E65: 0
C66: Subrecipients/Vendors | D66: 0 | E66: 0
C67: Indirect Cost | D67: 0 | E67: 0
C68: Total | D68: =SUM(D61:D67) -> 0 | E68: =SUM(E61:E67) -> 0
A69: 9 | C69: Direct Labor | D69: 0 | E69: 0 | G69: 0 | H69: =H61+G69 -> 550000
C70: Fringe Benefits | D70: 0 | E70: 0
C71: Travel | D71: 0 | E71: 0
C72: Equipment | D72: 0 | E72: 0
C73: Materials/Misc. | D73: 0 | E73: 0
C74: Subrecipients/Vendors | D74: 0 | E74: 0
C75: Indirect Cost | D75: 0 | E75: 0
C76: Total | D76: =SUM(D69:D75) -> 0 | E76: =SUM(E69:E75) -> 0
A77: 10 | C77: Direct Labor | D77: 0 | E77: 0 | G77: 0 | H77: =H69+G77 -> 550000
C78: Fringe Benefits | D78: 0 | E78: 0
C79: Travel | D79: 0 | E79: 0
C80: Equipment | D80: 0 | E80: 0
C81: Materials/Misc. | D81: 0 | E81: 0
C82: Subrecipients/Vendors | D82: 0 | E82: 0
C83: Indirect Cost | D83: 0 | E83: 0
C84: Total | D84: =SUM(D77:D83) -> 0 | E84: =SUM(E77:E83) -> 0
A85: 11 | C85: Direct Labor | D85: 0 | E85: 0 | G85: 0 | H85: =H77+G85 -> 550000
C86: Fringe Benefits | D86: 0 | E86: 0
C87: Travel | D87: 0 | E87: 0
C88: Equipment | D88: 0 | E88: 0
C89: Materials/Misc. | D89: 0 | E89: 0
C90: Subrecipients/Vendors | D90: 0 | E90: 0
C91: Indirect Cost | D91: 0 | E91: 0
C92: Total | D92: =SUM(D85:D91) -> 0 | E92: =SUM(E85:E91) -> 0
A93: 12 | C93: Direct Labor | D93: 0 | E93: 0 | G93: 0 | H93: =H85+G93 -> 550000
C94: Fringe Benefits | D94: 0 | E94: 0
C95: Travel | D95: 0 | E95: 0
C96: Equipment | D96: 0 | E96: 0
C97: Materials/Misc. | D97: 0 | E97: 0
C98: Subrecipients/Vendors | D98: 0 | E98: 0
C99: Indirect Cost | D99: 0 | E99: 0
C100: Total | D100: =SUM(D93:D99) -> 0 | E100: =SUM(E93:E99) -> 0
A101: 13 | C101: Direct Labor | D101: 0 | E101: 0 | G101: 0 | H101: =H93+G101 -> 550000
C102: Fringe Benefits | D102: 0 | E102: 0
C103: Travel | D103: 0 | E103: 0
C104: Equipment | D104: 0 | E104: 0
C105: Materials/Misc. | D105: 0 | E105: 0
C106: Subrecipients/Vendors | D106: 0 | E106: 0
C107: Indirect Cost | D107: 0 | E107: 0
C108: Total | D108: =SUM(D101:D107) -> 0 | E108: =SUM(E101:E107) -> 0
A109: 14 | C109: Direct Labor | D109: 0 | E109: 0 | G109: 0 | H109: =H101+G109 -> 550000
C110: Fringe Benefits | D110: 0 | E110: 0
C111: Travel | D111: 0 | E111: 0
C112: Equipment | D112: 0 | E112: 0
C113: Materials/Misc. | D113: 0 | E113: 0
C114: Subrecipients/Vendors | D114: 0 | E114: 0
C115: Indirect Cost | D115: 0 | E115: 0
C116: Total | D116: =SUM(D109:D115) -> 0 | E116: =SUM(E109:E115) -> 0
A117: 15 | C117: Direct Labor | D117: 0 | E117: 0 | G117: 0 | H117: =H109+G117 -> 550000
C118: Fringe Benefits | D118: 0 | E118: 0
C119: Travel | D119: 0 | E119: 0
C120: Equipment | D120: 0 | E120: 0
C121: Materials/Misc. | D121: 0 | E121: 0
C122: Subrecipients/Vendors | D122: 0 | E122: 0
C123: Indirect Cost | D123: 0 | E123: 0
C124: Total | D124: =SUM(D117:D123) -> 0 | E124: =SUM(E117:E123) -> 0
A125: 16 | C125: Direct Labor | D125: 0 | E125: 0 | G125: 0 | H125: =H117+G125 -> 550000
C126: Fringe Benefits | D126: 0 | E126: 0
C127: Travel | D127: 0 | E127: 0
C128: Equipment | D128: 0 | E128: 0
C129: Materials/Misc. | D129: 0 | E129: 0
C130: Subrecipients/Vendors | D130: 0 | E130: 0
C131: Indirect Cost | D131: 0 | E131: 0
C132: Total | D132: =SUM(D125:D131) -> 0 | E132: =SUM(E125:E131) -> 0
A133: 17 | C133: Direct Labor | D133: 0 | E133: 0 | G133: 0 | H133: =H125+G133 -> 550000
C134: Fringe Benefits | D134: 0 | E134: 0
C135: Travel | D135: 0 | E135: 0
C136: Equipment | D136: 0 | E136: 0
C137: Materials/Misc. | D137: 0 | E137: 0
C138: Subrecipients/Vendors | D138: 0 | E138: 0
C139: Indirect Cost | D139: 0 | E139: 0
C140: Total | D140: =SUM(D133:D139) -> 0 | E140: =SUM(E133:E139) -> 0
A141: 18 | C141: Direct Labor | D141: 0 | E141: 0 | G141: 0 | H141: =H133+G141 -> 550000
C142: Fringe Benefits | D142: 0 | E142: 0
C143: Travel | D143: 0 | E143: 0
C144: Equipment | D144: 0 | E144: 0
C145: Materials/Misc. | D145: 0 | E145: 0
C146: Subrecipients/Vendors | D146: 0 | E146: 0
C147: Indirect Cost | D147: 0 | E147: 0
C148: Total | D148: =SUM(D141:D147) -> 0 | E148: =SUM(E141:E147) -> 0
A149: 19 | C149: Direct Labor | D149: 0 | E149: 0 | G149: 0 | H149: =H141+G149 -> 550000
C150: Fringe Benefits | D150: 0 | E150: 0
C151: Travel | D151: 0 | E151: 0
C152: Equipment | D152: 0 | E152: 0
C153: Materials/Misc. | D153: 0 | E153: 0
C154: Subrecipients/Vendors | D154: 0 | E154: 0
C155: Indirect Cost | D155: 0 | E155: 0
C156: Total | D156: =SUM(D149:D155) -> 0 | E156: =SUM(E149:E155) -> 0
A157: 20 | C157: Direct Labor | D157: 0 | E157: 0 | G157: 0 | H157: =H149+G157 -> 550000
C158: Fringe Benefits | D158: 0 | E158: 0
C159: Travel | D159: 0 | E159: 0
C160: Equipment | D160: 0 | E160: 0
C161: Materials/Misc. | D161: 0 | E161: 0
C162: Subrecipients/Vendors | D162: 0 | E162: 0
C163: Indirect Cost | D163: 0 | E163: 0
C164: Total | D164: =SUM(D157:D163) -> 0 | E164: =SUM(E157:E163) -> 0
A166: Worksheet Specific Instructions
A167: CONDITIONAL FORMATTING APPLIED: If the Amount of CEC Funds Moving Between Categories is positive, the corresponding Category Budget row will turn green with conditional formatting.
A168: CONDITIONAL FORMATTING APPLIED: If the Amount of CEC Funds Moving Between Categories is negative, the corresponding Category Budget row will turn red with conditional formatting.
A169: CONDITIONAL FORMATTING APPLIED: If the Budget Category Total for the Amount of CEC Funds Moving Between Categories is anything other than zero, the cell will turn red with conditional formatting. This indicates there is not an equal amount of funds moving between categories and requires a correction. However, if the overall CEC Funds are to be increased or decreased, a formal amendment is required. Contact your CAM for more instructions.
A170: CONDITIONAL FORMATTING APPLIED: If the Budget Category Total for the Amount of Match Funds Moving Between Categories is negative, the cell will turn red with conditional formatting. This indicates Match Funds are decreasing and requires a formal amendment. Contact your CAM for more instructions.
A171: CONDITIONAL FORMATTING APPLIED: If the Total Amount of CEC Funds Moving Between Categories is greater than or equal to $150,000, the cell will turn yellow with conditional formatting. This indicates an amendment is required. Contact your CAM for more instructions.
A172: CONDITIONAL FORMATTING APPLIED: If the Total Amount of CEC Funds Moving Between Categories is greater than or equal to $300,000, the cell will turn orange with conditional formatting. This indicates an amendment is required. Contact your CAM for more instructions.

Sheet Lists (hidden)
A1: Recipient/Subrecipient
A2: Select Recipient or Subrecipient
A3: Recipient
A4: Subrecipient
A7: CA Business Certifications
A8: Select your company's California Business Certifications
A9: Small Business
A10: Micro Business
A11: Disabled Veteran Business Enterprise (DVBE)
A12: Small Business and Micro Business
A13: Small Business and Disabled Veteran Business Enterprise (DVBE)
A14: Micro Business and Disabled Veteran Business Enterprise (DVBE)
A15: None
A18: Indirect Cost Options
A19: Select an Indirect Cost Rate Option
A20: DCAA Rate
A21: CEC De Minimis Rate
A22: Recipient's Rate (From Cost Allocation Plan)
A23: Revision Indicator Selection
A24: Select Yes or No
A25: Yes
A26: No
